bitfinex/quotes_ETHUSD_20240608
["timestamp","ask_amount","ask_price","bid_price","bid_amount"]
[1717852395550,3.0,3681.5,3681.3,1.39285466]
[1717852395726,3.0,3681.5,3681.4,0.39601173]
[1717852395938,3.0,3681.5,3681.3,1.39285466]
[1717852396102,3.0,3681.5,3681.4,0.39601173]
[1717852396301,3.0,3681.5,3681.3,1.39285466]
[1717852396615,3.0,3681.5,3681.4,0.39601173]
[1717852396995,3.0,3681.5,3681.3,1.39285466]
[1717852397209,3.0,3681.5,3681.4,0.39601173]
[1717852397604,3.0,3681.5,3681.3,1.39285466]
[1717852397810,3.0,3681.5,3681.4,0.39601173]
[1717852398505,3.0,3681.5,3681.3,1.39285466]
[1717852398710,3.0,3681.5,3681.4,0.39601173]
[1717852398897,3.0,3681.5,3681.3,1.39285466]
[1717852399097,3.0,3681.5,3681.4,0.39601173]
[1717852399296,3.0,3681.5,3681.3,1.39285466]
[1717852399495,3.0,3681.5,3681.4,0.39601173]
[1717852399828,3.0,3681.5,3681.3,1.39285466]
[1717852400036,3.0,3681.5,3681.4,0.39601173]
[1717852400335,3.0,3681.5,3681.3,1.39285466]
[1717852400548,3.0,3681.5,3681.4,0.39601173]
[1717852400833,3.0,3681.5,3681.3,1.39285466]
[1717852401031,3.0,3681.5,3681.4,0.39601173]
[1717852401390,3.0,3681.5,3681.3,1.39285466]
[1717852401630,3.0,3681.5,3681.4,0.39601173]
[1717852401935,3.0,3681.5,3681.3,1.39285466]
[1717852402140,3.0,3681.5,3681.4,0.39601173]
[1717852402435,3.0,3681.5,3681.3,1.39285466]
[1717852402653,3.0,3681.5,3681.4,0.39601173]
[1717852403020,3.0,3681.5,3681.3,1.39285466]
[1717852403335,3.0,3681.5,3681.4,0.39601173]
[1717852403505,3.0,3681.5,3681.3,1.39285466]
[1717852403704,3.0,3681.5,3681.4,0.39601173]
[1717852403951,3.0,3681.5,3681.3,1.39285466]
[1717852404152,3.0,3681.5,3681.4,0.39601173]
[1717852404349,3.0,3681.5,3681.3,1.39285466]
[1717852404553,3.0,3681.5,3681.4,0.39601173]
[1717852404849,3.0,3681.5,3681.3,1.39285466]
[1717852405003,3.0,3681.5,3681.4,0.39601173]
[1717852405345,3.0,3681.5,3681.3,1.39285466]
[1717852405553,3.58714153,3681.9,3681.4,4.95096639]
[1717852405706,2.71592,3682.0,3681.4,4.95096639]
[1717852406015,3.0,3681.9,3681.4,4.55495466]
[1717852406412,3.0,3681.9,3681.5,0.39601173]
[1717852406623,3.0,3681.9,3681.6,2.11785466]
[1717852407245,3.0,3681.9,3681.7,0.39601173]
[1717852408441,3.0,3681.9,3681.7,1.78886639]
[1717852410160,3.302677,3682.4,3681.8,4.55495466]
[1717852410303,2.71562,3682.4,3682.1,0.725]
[1717852410651,2.71562,3682.4,3682.1,1.39285466]
[1717852411156,2.71562,3682.4,3682.2,0.39601173]
[1717852411678,3.0,3682.3,3682.2,0.39601173]
[1717852419128,3.0,3682.3,3681.7,0.725]
[1717852419323,3.0,3682.3,3682.2,0.39601173]
[1717852419529,3.6302677,3682.3,3681.9,0.725]
[1717852419757,3.587057,3682.3,3682.2,0.39601173]
[1717852419960,3.0,3682.3,3681.9,2.11785466]
[1717852420166,3.587057,3682.3,3682.2,0.39601173]
[1717852420365,3.0,3682.3,3681.9,1.39285466]
[1717852420677,3.0,3682.3,3682.0,0.39601173]
[1717852423059,2.71576,3682.2,3682.0,0.39601173]
[1717852423250,3.302817,3682.2,3682.0,0.39601173]
[1717852424489,3.302817,3682.2,3681.6,0.725]
[1717852424630,3.302817,3682.2,3682.1,0.39601173]
[1717852424977,6.302817,3682.2,3682.1,0.39601173]
[1717852425182,6.302817,3682.2,3681.7,1.39285466]
[1717852425479,6.302817,3682.2,3681.8,0.39601173]
[1717852425893,6.302817,3682.2,3681.7,1.39285466]
[1717852426093,6.302817,3682.2,3681.9,0.39601173]
[1717852426291,6.302817,3682.2,3681.7,1.39285466]
[1717852426578,6.302817,3682.2,3681.4,7.48]
[1717852426795,6.302817,3682.2,3681.5,2.51386639]
[1717852427961,6.302817,3682.2,3681.5,1.78886639]
[1717852428292,2.71613,3681.7,3681.5,0.39601173]
[1717852429190,2.71613,3681.7,3680.9,0.725]
[1717852429399,2.71613,3681.7,3681.0,1.78886639]
[1717852429691,5.19113,3681.3,3681.0,0.39601173]
[1717852430055,5.19113,3681.3,3680.7,0.725]
[1717852430256,5.19113,3681.3,3681.1,0.39601173]
[1717852430456,5.19113,3681.3,3680.7,0.725]
[1717852430654,5.19113,3681.3,3681.2,0.39601173]
[1717852430993,5.19113,3681.3,3680.7,0.725]
[1717852430994,2.71643,3681.3,3680.7,0.725]
[1717852431364,2.71643,3681.3,3680.8,0.39601173]
[1717852431570,2.71643,3681.3,3680.7,0.725]
[1717852431769,2.71643,3681.3,3680.8,0.39601173]
[1717852431977,2.71643,3681.3,3680.7,0.725]
[1717852432173,2.71643,3681.3,3680.8,0.39601173]
[1717852432374,2.71643,3681.3,3680.7,0.725]
[1717852432585,2.71643,3681.3,3680.8,0.39601173]
[1717852432804,2.71643,3681.3,3680.7,0.725]
[1717852433008,2.71643,3681.3,3680.9,0.39601173]
[1717852433303,2.71643,3681.3,3680.7,0.725]
[1717852433496,2.71643,3681.3,3681.0,0.39601173]
[1717852433673,2.71643,3681.3,3680.7,0.725]
[1717852433883,2.71643,3681.3,3681.1,0.39601173]
[1717852434105,2.71643,3681.3,3680.7,0.725]
[1717852434568,2.71643,3681.3,3680.8,0.39601173]
[1717852434763,2.71643,3681.3,3680.7,0.725]
[1717852434965,2.71643,3681.3,3680.8,0.39601173]
[1717852435158,2.71643,3681.3,3680.7,0.725]
[1717852435479,2.71643,3681.3,3680.8,0.39601173]
[1717852435809,2.71643,3681.3,3680.7,0.725]
[1717852435996,2.71643,3681.3,3680.9,0.39601173]
[1717852436189,2.71643,3681.3,3680.7,0.725]
[1717852436388,2.71643,3681.3,3680.8,0.39601173]
[1717852436595,2.71643,3681.3,3680.7,0.725]
[1717852436795,2.71643,3681.3,3680.8,0.39601173]
[1717852436995,2.71643,3681.3,3680.4,2.4603]
[1717852437181,2.71643,3681.3,3680.5,1.78804306]
[1717852437386,2.71643,3681.3,3680.6,0.725]
[1717852437566,2.71643,3681.3,3680.7,1.39285466]
[1717852437907,2.71643,3681.3,3680.8,1.1201884]
[1717852439177,2.71643,3681.3,3680.8,2.51304306]
[1717852439383,2.71643,3681.3,3681.0,0.725]
[1717852439612,2.71643,3681.3,3681.0,2.11785466]
[1717852439770,2.71643,3681.3,3681.1,0.3951884]
[1717852447424,2.452,3681.2,3681.1,0.3951884]
[1717852447929,2.7166,3681.1,3680.6,0.725]
[1717852448077,2.7166,3681.1,3680.7,1.39285466]
[1717852448307,2.7166,3681.1,3680.7,1.78804306]
[1717852450745,5.1723,3681.1,3680.7,0.3951884]
[1717852451135,5.1723,3681.1,3680.3,2.4658]
[1717852451336,5.1723,3681.1,3680.8,0.3951884]
[1717852451536,5.1723,3681.1,3680.6,0.725]
[1717852451749,5.1723,3681.1,3680.9,0.3951884]
[1717852451936,5.1723,3681.1,3680.6,2.11785466]
[1717852452415,5.1723,3681.1,3680.7,0.3951884]
[1717852452729,5.1723,3681.1,3680.6,2.11785466]
[1717852452916,5.1723,3681.1,3680.8,0.3951884]
[1717852453117,5.1723,3681.1,3680.6,2.11785466]
[1717852453326,5.1723,3681.1,3680.9,0.3951884]
[1717852453525,5.1723,3681.1,3681.0,0.3951884]
[1717852453943,5.1723,3681.1,3680.6,2.11785466]
[1717852454119,5.1723,3681.1,3681.0,0.3951884]
[1717852454328,5.1723,3681.1,3680.6,1.39285466]
[1717852454513,5.1723,3681.1,3681.0,0.3951884]
[1717852455343,5.1723,3681.1,3680.6,1.39285466]
[1717852455513,5.1723,3681.1,3681.0,0.3951884]
[1717852455726,5.1723,3681.1,3680.6,1.39285466]
[1717852455934,5.1723,3681.1,3681.0,0.3951884]
[1717852456359,5.1723,3681.1,3680.6,1.39285466]
[1717852456553,5.1723,3681.1,3681.0,0.3951884]
[1717852456767,5.1723,3681.1,3680.6,1.39285466]
[1717852456981,5.1723,3681.1,3681.0,0.3951884]
[1717852457167,5.1723,3681.1,3680.6,1.39285466]
[1717852457360,5.1723,3681.1,3680.7,0.3951884]
[1717852457763,5.1723,3681.1,3680.8,0.3951884]
[1717852458138,5.1723,3681.1,3680.6,1.39285466]
[1717852458630,2.71685,3680.8,3680.7,0.3951884]
[1717852459036,2.71685,3680.8,3680.4,0.725]
[1717852459367,2.71685,3680.8,3680.5,0.3951884]
[1717852459868,2.71685,3680.8,3680.6,0.3951884]
[1717852460529,2.71685,3680.8,3680.4,2.11785466]
[1717852460530,2.71685,3680.8,3680.7,0.3951884]
[1717852461470,2.71685,3680.8,3680.4,1.39285466]
[1717852461776,2.71685,3680.8,3680.2,0.725]
[1717852461934,2.71685,3680.8,3680.3,1.78804306]
[1717852463814,2.71685,3680.8,3680.4,0.725]
[1717852464294,2.71685,3680.8,3680.5,0.3951884]
[1717852464620,2.71685,3680.8,3680.4,0.725]
[1717852464806,2.71685,3680.8,3680.5,0.3951884]
[1717852465006,2.71685,3680.8,3680.4,0.725]
[1717852465183,2.71685,3680.8,3680.5,0.3951884]
[1717852465385,2.71685,3680.8,3680.4,0.725]
[1717852465696,2.71685,3680.8,3680.5,0.3951884]
[1717852466093,2.71685,3680.8,3680.4,0.725]
[1717852466295,2.71685,3680.8,3680.6,0.3951884]
[1717852466616,2.71685,3680.8,3680.7,0.3951884]
[1717852466835,2.71685,3680.8,3680.6,0.725]
[1717852467026,2.71685,3680.8,3680.7,0.3951884]
[1717852467227,2.71685,3680.8,3680.6,0.725]
[1717852467450,2.71685,3680.8,3680.7,0.3951884]
[1717852467797,2.71685,3680.8,3680.6,0.725]
[1717852468036,2.71685,3680.8,3680.7,0.3951884]
[1717852468251,2.71685,3680.8,3680.6,0.725]
[1717852468429,2.71685,3680.8,3680.7,0.3951884]
[1717852468648,2.71685,3680.8,3680.5,1.39285466]
[1717852468934,2.71685,3680.8,3680.7,0.3951884]
[1717852469136,2.71685,3680.8,3680.5,1.39285466]
[1717852469333,2.71685,3680.8,3680.7,0.3951884]
[1717852469502,2.71685,3680.8,3680.5,1.39285466]
[1717852469693,2.71685,3680.8,3680.7,0.3951884]
[1717852469895,2.71685,3680.8,3680.5,1.39285466]
[1717852470122,2.71685,3680.8,3680.7,0.3951884]
[1717852470310,2.71685,3680.8,3680.5,1.39285466]
[1717852470508,2.71685,3680.8,3680.7,0.3951884]
[1717852470731,2.71685,3680.8,3680.5,1.39285466]
[1717852470904,2.71685,3680.8,3680.7,0.3951884]
[1717852471107,2.71685,3680.8,3680.5,1.39285466]
[1717852471297,2.71685,3680.8,3680.7,0.3951884]
[1717852471824,2.71685,3680.8,3680.5,1.39285466]
[1717852472030,2.71685,3680.8,3680.6,0.3951884]
[1717852473838,2.71685,3680.8,3680.7,1.39285466]
[1717852474359,2.71685,3680.8,3680.7,1.78804306]
[1717852476253,0.58726394,3681.1,3680.7,4.04164306]
[1717852476569,5.71653,3681.2,3680.9,0.725]
[1717852476705,5.71653,3681.2,3681.0,1.39285466]
[1717852477136,5.71653,3681.2,3681.1,0.3951884]
[1717852477806,6.30371899,3681.2,3681.1,0.3951884]
[1717852478248,5.71653,3681.2,3681.1,0.3951884]
[1717852485841,8.00363,3681.2,3681.1,0.3951884]
[1717852486162,8.59081899,3681.2,3681.1,0.3951884]
[1717852489446,8.5908885,3681.2,3681.1,0.3951884]
[1717852490564,8.59088205,3681.2,3681.1,0.3951884]
[1717852498860,6.30378205,3681.2,3680.7,0.725]
[1717852499099,5.71653,3681.2,3681.1,0.38201545]
[1717852499597,5.71653,3681.2,3680.8,1.39285466]
[1717852499902,5.71653,3681.2,3680.9,0.38201545]
[1717852504324,5.71653,3681.2,3680.9,4.09517011]
[1717852505043,3.0,3681.2,3681.0,1.39285466]
[1717852505205,3.0,3681.6,3681.0,1.39285466]
[1717852505401,3.0,3681.6,3681.1,0.38201545]
[1717852505701,3.0,3681.6,3681.2,1.39285466]
[1717852506342,3.0,3681.6,3681.3,0.38201545]
[1717852506703,3.0,3681.6,3681.2,1.39285466]
[1717852506933,3.58723139,3681.6,3681.4,0.38201545]
[1717852507140,3.0,3681.6,3681.2,1.39285466]
[1717852507325,3.0,3681.6,3681.5,0.38201545]
[1717852507524,3.58723139,3681.6,3681.2,1.39285466]
[1717852507729,3.0,3681.6,3681.5,0.38201545]
[1717852507902,3.86358914,3681.6,3681.2,1.39285466]
[1717852508098,3.58723139,3681.6,3681.5,0.38201545]
[1717852508302,0.58723139,3682.0,3681.5,1.39285466]
[1717852508521,0.58723139,3682.0,3681.9,0.725]
[1717852508721,2.71547,3682.6,3681.9,4.43815466]
[1717852508981,2.71547,3682.6,3682.0,1.39285466]
[1717852509124,2.71547,3682.6,3682.0,1.77487011]
[1717852509644,2.71547,3682.6,3682.1,0.725]
[1717852509872,2.71547,3682.6,3682.1,1.39285466]
[1717852510050,3.27896953,3682.6,3682.2,0.38201545]
[1717852510684,3.0,3682.5,3682.2,0.38201545]
[1717852510889,3.58702535,3682.5,3682.2,0.38201545]
[1717852511320,3.0,3682.5,3682.2,0.38201545]
[1717852516990,3.86349856,3682.5,3682.2,0.38201545]
[1717852518258,3.0,3682.5,3682.2,0.38201545]
[1717852524804,3.0,3682.5,3682.2,2.72061545]
[1717852524970,3.0,3682.5,3682.2,0.38201545]
[1717852535349,3.0,3682.5,3682.3,2.3386]
[1717852535638,3.0,3682.5,3682.4,0.42155065]
[1717852535850,3.0,3682.5,3682.3,2.3386]
[1717852536053,3.0,3682.5,3682.4,0.42155065]
[1717852536357,3.0,3682.5,3682.3,2.3386]
[1717852536492,3.0,3682.5,3682.4,0.42155065]
[1717852536696,3.0,3682.5,3682.3,2.3386]
[1717852536898,3.0,3682.5,3682.4,0.42155065]
[1717852537099,3.0,3682.5,3682.3,3.73145466]
[1717852537432,0.58702035,3682.8,3682.4,1.81440531]
[1717852537602,2.71518,3683.0,3682.6,0.725]
[1717852537935,3.30220035,3683.0,3682.6,2.11785466]
[1717852538142,2.71518,3683.0,3682.7,0.42155065]
[1717852538857,3.0,3682.9,3682.7,1.81440531]
[1717852540524,3.58693398,3682.9,3682.7,1.81440531]
[1717852540937,3.0,3682.9,3682.7,1.81440531]
[1717852541636,2.71518,3683.0,3682.7,1.81440531]
[1717852542168,3.58693477,3683.3,3682.8,1.39285466]
[1717852543272,3.0,3683.3,3682.8,1.39285466]
[1717852543432,3.0,3683.3,3682.9,0.42155065]
[1717852543634,3.0,3683.3,3682.9,1.81440531]
[1717852544144,3.44004,3683.2,3682.9,1.81440531]
[1717852544467,3.0,3683.1,3682.9,1.81440531]
[1717852544677,3.58693477,3683.1,3682.9,1.81440531]
[1717852545079,3.0,3683.1,3682.9,1.81440531]
[1717852547032,3.58693477,3683.1,3682.9,1.81440531]
[1717852547272,3.0,3683.1,3682.9,1.81440531]
[1717852547588,3.58696227,3683.1,3682.9,1.81440531]
[1717852547883,3.0,3683.1,3682.9,1.81440531]
[1717852553436,3.5869211,3683.1,3682.9,1.81440531]
[1717852553845,3.0,3683.1,3682.9,1.81440531]
[1717852555361,2.71517,3683.0,3682.9,1.81440531]
[1717852555566,5.71517,3683.0,3682.9,1.81440531]
[1717852556063,5.71517,3683.0,3682.9,0.42155065]
[1717852556268,5.71517,3683.0,3682.5,2.3418]
[1717852556464,5.71517,3683.0,3682.6,1.81440531]
[1717852562718,2.71532,3682.8,3682.6,0.42155065]
[1717852562921,2.71553,3682.6,3682.1,2.3492]
[1717852563089,3.30250736,3682.6,3682.2,1.39285466]
[1717852563293,2.71562,3682.4,3682.2,1.39285466]
[1717852563476,3.30259736,3682.4,3682.2,1.39285466]
[1717852563681,2.71562,3682.4,3682.2,1.39285466]
[1717852563876,2.71562,3682.4,3681.5,15.2842]
[1717852564080,3.94299491,3683.0,3681.5,14.5592]
[1717852564081,2.71576,3682.2,3681.5,14.5592]
[1717852564295,2.71597,3682.0,3681.1,2.3492]
[1717852564628,2.7162,3681.7,3681.1,5.39285466]
[1717852565587,2.7162,3681.7,3681.1,1.39285466]
[1717852566634,2.7165,3681.2,3680.5,2.2]
[1717852566936,2.7165,3681.2,3680.6,1.39285466]
[1717852568159,3.4415,3681.2,3680.6,1.39285466]
[1717852568489,2.7165,3681.2,3680.6,1.39285466]
[1717852571598,2.71681,3680.8,3680.6,1.39285466]
[1717852572245,2.71681,3680.8,3680.5,2.2]
[1717852572455,2.71681,3680.8,3680.0,7.36254]
[1717852572733,2.71681,3680.8,3680.1,1.39285466]
[1717852573144,2.71681,3680.8,3680.2,0.725]
[1717852573299,2.71681,3680.8,3680.3,1.39285466]
[1717852573799,2.71681,3680.8,3680.4,0.725]
[1717852574003,2.71681,3680.8,3680.5,1.39285466]
[1717852575223,2.71649,3681.3,3680.5,1.39285466]
[1717852575430,3.0,3681.2,3680.5,1.39285466]
[1717852577347,3.0,3681.2,3680.6,0.40749896]
[1717852577648,3.0,3681.2,3680.7,1.39285466]
[1717852578138,3.0,3681.2,3680.8,0.40749896]
[1717852578316,3.0,3681.2,3680.8,1.39285466]
[1717852578826,3.0,3681.2,3680.9,0.40749896]
[1717852581463,3.0,3681.2,3681.0,1.39285466]
[1717852581950,3.0,3681.2,3681.1,0.40749896]
[1717852584131,5.3036,3681.2,3681.1,0.40749896]
[1717852584320,2.71659,3681.1,3680.4,2.3492]
[1717852584516,2.71659,3681.1,3680.5,1.80035362]
[1717852591328,3.30389309,3681.1,3680.5,1.80035362]
[1717852592562,3.30389309,3681.1,3680.5,0.40749896]
[1717852592563,2.71685,3680.8,3680.5,0.40749896]
[1717852592772,2.71694,3680.6,3679.8,7.48]
[1717852592937,2.71694,3680.6,3680.1,1.39285466]
[1717852596663,3.44194,3680.6,3680.1,1.39285466]
[1717852596860,4.07522501,3680.6,3680.1,1.39285466]
[1717852597790,4.66253507,3680.6,3680.1,1.39285466]
[1717852600007,4.02925006,3680.6,3680.1,1.39285466]
[1717852600155,3.44194,3680.6,3680.1,1.39285466]
[1717852600357,2.71723,3680.3,3679.4,9.8665]
[1717852600552,2.71723,3680.3,3680.0,8.03039466]
[1717852600969,2.71723,3680.3,3680.0,6.63754]
[1717852602410,2.71731,3680.1,3680.0,6.63754]
[1717852603569,5.71731,3680.1,3680.0,6.63754]
[1717852604355,6.30462006,3680.1,3680.0,6.63754]
[1717852605258,5.71731,3680.1,3680.0,6.63754]
[1717852605769,6.30474818,3680.1,3680.0,6.63754]
[1717852605977,9.714823,3680.1,3680.0,6.63754]
[1717852606294,9.714823,3680.1,3680.0,6.61425108]
[1717852606707,9.714823,3680.1,3680.0,6.39872337]
[1717852607072,9.714823,3680.1,3680.0,6.20872337]
[1717852607601,9.714823,3680.1,3680.0,5.85572337]
[1717852607758,9.714823,3680.1,3680.0,5.83321736]
[1717852608228,9.714823,3680.1,3680.0,5.57321736]
[1717852608360,12.432133,3680.1,3680.0,1.3e-07]
[1717852608555,5.17883,3679.4,3679.3,0.1281274]
[1717852608815,8.90383,3679.4,3679.3,0.04727448]
[1717852608973,9.49126818,3679.4,3679.3,0.04727448]
[1717852609313,2.7182,3678.9,3678.8,0.005]
[1717852609521,5.9042,3678.9,3677.0,0.006]
[1717852609795,3.44335,3678.7,3677.2,0.725]
[1717852609958,3.44335,3678.7,3676.9,11.486]
[1717852610158,8.90435,3678.7,3676.9,4.006]
[1717852610407,18.54016018,3678.7,3677.0,0.725]
[1717852610595,18.54016018,3678.7,3677.1,4.0]
[1717852610908,18.54016018,3678.7,3677.0,0.725]
[1717852611399,18.54016018,3678.7,3677.4,0.725]
[1717852611557,17.952722,3678.7,3676.9,0.006]
[1717852611966,18.5404878,3678.7,3676.9,0.006]
[1717852612205,12.79806124,3678.7,3676.9,0.006]
[1717852612807,40.87220124,3678.7,3676.9,0.006]
[1717852613260,2.71932,3677.4,3676.8,2.17675734]
[1717852613459,2.71932,3677.4,3676.8,2.17075734]
[1717852614413,2.71949,3677.2,3676.8,2.17075734]
[1717852614774,2.7196,3677.0,3676.8,2.17075734]
[1717852615188,3.0,3676.9,3676.8,2.17075734]
[1717852619695,3.0,3676.9,3676.8,3.563612]
[1717852620123,2.71922,3677.6,3676.8,3.94437246]
[1717852620124,3.0,3677.5,3676.8,3.94437246]
[1717852620276,3.0,3677.5,3676.9,1.39285466]
[1717852620779,2.71922,3677.6,3677.0,0.38076046]
[1717852620977,10.1988,3678.1,3677.1,1.39285466]
[1717852621482,2.71899,3677.9,3677.2,0.38076046]
[1717852621941,2.71899,3677.9,3676.8,2.17075734]
[1717852622100,2.71899,3677.9,3677.3,1.77361512]
[1717852622447,2.71909,3677.7,3677.4,0.38076046]
[1717852622938,2.71909,3677.7,3676.9,1.39285466]
[1717852623421,3.0,3677.6,3677.0,0.38076046]
[1717852623628,3.0,3678.0,3677.1,1.39285466]
[1717852623921,3.0,3678.0,3677.2,2.2939]
[1717852624141,3.0,3678.1,3677.3,1.39285466]
[1717852624311,3.0,3678.6,3677.4,0.55]
[1717852624512,2.71839,3678.7,3677.5,1.39285466]
[1717852624902,2.71839,3678.7,3677.6,0.38076046]
[1717852625111,2.71839,3678.7,3677.7,1.39285466]
[1717852625641,2.71839,3678.7,3677.8,0.38076046]
[1717852625940,2.71839,3678.7,3677.9,1.39285466]
[1717852626438,2.71839,3678.7,3678.0,0.38076046]
[1717852626633,2.71801,3679.2,3678.1,1.39285466]
[1717852626811,2.71801,3679.2,3678.2,2.4072]
[1717852627011,2.71801,3679.2,3678.3,1.39285466]
[1717852627241,2.3527,3680.1,3678.3,1.39285466]
[1717852627242,2.71764,3679.7,3678.3,1.39285466]
[1717852627458,2.71764,3679.7,3678.4,2.71855]
[1717852627742,2.71723,3680.3,3678.7,4.11113466]
[1717852627906,2.71734,3680.1,3678.9,2.4072]
[1717852628107,2.71734,3680.1,3679.0,1.39285466]
[1717852628527,2.71734,3680.1,3679.1,0.38076046]
[1717852628705,2.71734,3680.1,3679.2,1.39285466]
[1717852628930,0.271734,3680.0,3679.2,1.39285466]
[1717852629443,2.71695,3680.6,3679.3,0.38076046]
[1717852629643,2.71695,3680.6,3679.4,1.39285466]
[1717852630007,2.3527,3681.3,3679.6,3.13685466]
[1717852630008,5.0692,3681.3,3679.6,3.13685466]
[1717852630311,2.76377914,3681.3,3680.0,1.744]
[1717852630514,2.7165,3681.3,3680.1,1.39285466]
[1717852630811,2.7165,3681.3,3680.2,2.71723]
[1717852630812,0.27165,3681.2,3680.2,2.71723]
[1717852631035,0.27165,3681.2,3680.4,2.4072]
[1717852631212,0.27165,3681.2,3680.5,1.39285466]
[1717852631545,0.27165,3681.2,3680.6,2.71692]
[1717852631708,2.71599,3681.9,3680.7,1.39285466]
[1717852632038,0.03282063,3681.8,3680.7,1.39285466]
[1717852632246,2.71599,3681.9,3680.8,0.38076046]
[1717852632427,2.71599,3681.9,3680.9,1.39285466]
[1717852633009,2.71599,3681.9,3681.0,0.38076046]
[1717852633216,0.271599,3681.8,3681.1,1.39285466]
[1717852633839,3.271599,3681.8,3681.2,0.38076046]
[1717852634032,3.271599,3681.8,3681.2,1.77361512]
[1717852634656,2.74897063,3681.7,3681.2,0.38076046]
[1717852634958,2.71629,3681.5,3681.2,0.38076046]
[1717852635271,2.71629,3681.5,3680.4,7.48]
[1717852635272,2.71651,3681.2,3680.4,5.48]
[1717852635476,2.71651,3681.2,3680.5,1.39285466]
[1717852635776,3.0,3681.1,3680.5,1.77361512]
[1717852635912,3.03282063,3681.1,3680.5,1.77361512]
[1717852636117,3.0,3681.1,3680.5,1.77361512]
[1717852639123,0.03282063,3681.0,3680.5,1.77361512]
[1717852639323,0.63209816,3680.9,3680.5,1.77361512]
[1717852639935,0.03282063,3680.8,3680.5,0.38076046]
[1717852640145,2.71687,3680.7,3679.8,2.4072]
[1717852640397,2.71687,3680.7,3679.9,1.39285466]
[1717852640546,3.271687,3680.6,3679.9,1.77361512]
[1717852641067,2.74988063,3680.5,3679.9,0.38076046]
[1717852641290,2.74988063,3680.5,3679.1,5.48]
[1717852641291,2.7172,3680.3,3679.1,5.48]
[1717852641434,2.7172,3680.3,3680.0,0.38076046]
[1717852641633,2.7172,3680.3,3679.2,1.39285466]
[1717852641634,3.57172,3680.2,3679.2,1.39285466]
[1717852642129,2.71732,3680.1,3679.3,0.38076046]
[1717852642337,2.7175,3679.9,3679.4,1.39285466]
[1717852642734,3.0,3679.8,3679.4,1.39285466]
[1717852642939,3.0,3679.8,3679.5,0.38076046]
[1717852643233,3.0,3679.8,3679.5,1.77361512]
[1717852645274,3.57175,3679.8,3679.5,1.77361512]
[1717852649013,3.0,3679.8,3679.5,1.77361512]
[1717852651279,2.71761,3679.7,3679.5,1.77361512]
[1717852654847,2.71761,3679.7,3679.5,0.38076046]
[1717852655140,3.0,3679.6,3679.5,0.38076046]
[1717852655357,2.71793,3679.3,3678.5,2.3223]
[1717852655490,3.0,3679.2,3678.6,1.39285466]
[1717852655690,2.71808,3679.1,3678.6,1.77361512]
[1717852657542,3.0,3679.2,3678.6,1.77361512]
[1717852657762,3.0,3679.5,3678.6,1.77361512]
[1717852657894,3.3,3679.5,3678.6,1.77361512]
[1717852658096,2.71799,3679.2,3678.6,1.77361512]
[1717852658398,3.0,3679.5,3678.6,1.77361512]
[1717852658737,2.71767,3679.7,3678.6,1.77361512]
[1717852658738,3.0,3679.6,3678.6,1.77361512]
[1717852659558,2.7178,3679.5,3678.6,1.77361512]
[1717852659762,3.0,3679.4,3678.6,1.77361512]
[1717852661333,2.71792,3679.3,3678.6,1.77361512]
[1717852661533,3.0,3679.2,3678.6,1.77361512]
[1717852662779,2.71792,3679.3,3678.6,1.77361512]
[1717852677689,3.0,3679.6,3678.6,1.77361512]
[1717852677916,3.0,3679.7,3678.6,1.77361512]
[1717852678058,0.571758,3679.6,3678.6,1.77361512]
[1717852678465,0.571758,3679.6,3678.7,0.55]
[1717852678759,0.571758,3679.6,3678.8,1.39285466]
[1717852679105,0.571758,3679.6,3678.9,0.38076046]
[1717852679281,0.571758,3679.6,3679.0,1.39285466]
[1717852679479,0.68768654,3679.5,3679.0,1.39285466]
[1717852679893,0.68768654,3679.5,3679.1,0.38076046]
[1717852680073,0.68768654,3679.5,3679.2,1.39285466]
[1717852680704,0.68768654,3679.5,3679.3,0.38076046]
[1717852680871,3.58752743,3679.7,3679.3,1.77361512]
[1717852681074,3.0,3679.7,3679.4,1.39285466]
[1717852681569,3.0,3679.7,3679.5,0.38076046]
[1717852681902,3.0,3679.7,3679.5,1.77361512]
[1717852682763,3.45616913,3679.7,3679.5,1.77361512]
[1717852682965,4.04369656,3679.7,3679.5,1.77361512]
[1717852683795,4.04367018,3679.7,3679.5,1.77361512]
[1717852684905,4.04367018,3679.7,3679.6,1.39285466]
[1717852684906,3.58750105,3679.7,3679.6,1.39285466]
[1717852685091,3.0,3679.7,3679.6,1.39285466]
[1717852685281,0.271687,3680.6,3679.6,1.39285466]
[1717852685479,0.271687,3680.6,3679.7,2.2535]
[1717852685794,0.271687,3680.6,3679.8,1.39285466]
[1717852686175,2.71694,3680.7,3679.9,0.38076046]
[1717852686393,2.71716,3680.4,3680.0,1.39285466]
[1717852686703,0.04727606,3681.5,3679.3,2.2535]
[1717852686704,2.71735,3680.1,3679.3,2.2535]
[1717852687006,2.71735,3680.1,3679.4,1.39285466]
[1717852687315,3.0,3680.0,3679.5,2.2535]
[1717852687521,3.0,3680.0,3679.6,1.39285466]
[1717852688214,3.0,3680.5,3679.6,1.39285466]
[1717852689593,2.71661,3681.1,3679.9,1.39285466]
[1717852689799,0.496871,3681.0,3680.0,0.55]
[1717852689971,2.7168,3680.8,3680.1,1.39285466]
[1717852690992,3.0,3680.7,3680.1,1.39285466]
[1717852691394,2.28492063,3680.6,3678.8,6.2535]
[1717852691679,0.52849206,3680.5,3678.9,1.39285466]
[1717852692014,2.28492063,3680.6,3678.9,1.39285466]
[1717852692015,2.2521,3680.6,3678.9,1.39285466]
[1717852692317,0.58736555,3680.5,3678.9,1.39285466]
[1717852692620,2.71762,3679.7,3678.9,1.39285466]
[1717852693175,2.71784,3679.4,3678.9,1.39285466]
[1717852693585,2.71799,3679.2,3678.9,1.39285466]
[1717852693978,3.0,3679.1,3678.9,1.39285466]
[1717852694175,2.71812,3679.0,3678.9,1.39285466]